[Event "IV Elllobregat Open Chess Tmnt"]
[Site "Sant Boi de Llobregat, Spain"]
[Date "2023.12.02"]
[Round "3.47"]
[White "Ahmad, Khagan"]
[Black "Heimann, Mark"]
[Result "1-0"]
[TimeControl "90min/40moves + 15min/end + 30sec from move 1"]
[WhiteFideId "13431552"]
[BlackFideId "2028441"]
[WhiteElo "2285"]
[BlackElo "2440"]

1. Nf3 {[%clk 01:28:33]} {[%emt 00:02:27]} d5 {[%clk 01:30:43]} {[%emt
00:00:17]} 2. d4 {[%clk 01:28:55]} {[%emt 00:00:08]} Nf6 {[%clk 01:30:48]}
{[%emt 00:00:25]} 3. c4 {[%clk 01:29:13]} {[%emt 00:00:11]} e6 {[%clk
01:30:45]} {[%emt 00:00:34]} 4. g3 {[%clk 01:29:39]} {[%emt 00:00:04]} Bb4+
{[%clk 01:30:30]} {[%emt 00:00:44]} 5. Bd2 {[%clk 01:30:03]} {[%emt 00:00:07]}
Be7 {[%clk 01:30:36]} {[%emt 00:00:24]} 6. Bg2 {[%clk 01:30:23]} {[%emt
00:00:09]} O-O {[%clk 01:30:55]} {[%emt 00:00:11]} 7. Qc2 {[%clk 01:30:42]}
{[%emt 00:00:11]} Nbd7 {[%clk 01:30:42]} {[%emt 00:00:43]} 8. O-O {[%clk
01:30:52]} {[%emt 00:00:20]} c6 {[%clk 01:30:22]} {[%emt 00:00:51]} 9. Bf4
{[%clk 01:31:08]} {[%emt 00:00:14]} a5 {[%clk 01:29:02]} {[%emt 00:01:50]} 10.
b3 {[%clk 01:19:42]} {[%emt 00:11:55]} b5 {[%clk 01:21:53]} {[%emt 00:07:40]}
11. cxb5 {[%clk 01:01:18]} {[%emt 00:18:55]} cxb5 {[%clk 01:22:17]} {[%emt
00:00:06]} 12. Bc7 {[%clk 01:01:43]} {[%emt 00:00:04]} Qe8 {[%clk 01:22:43]}
{[%emt 00:00:05]} 13. Qc6 {[%clk 01:00:19]} {[%emt 00:01:54]} Ra7 {[%clk
01:07:20]} {[%emt 00:15:52]} 14. Rc1 {[%clk 00:37:27]} {[%emt 00:23:21]} b4
{[%clk 01:06:58]} {[%emt 00:00:54]} 15. Nbd2 {[%clk 00:36:19]} {[%emt
00:01:38]} Bb7 {[%clk 01:06:25]} {[%emt 00:01:03]} 16. Qc2 {[%clk 00:34:27]}
{[%emt 00:02:21]} Qa8 {[%clk 01:03:56]} {[%emt 00:02:59]} 17. e3 {[%clk
00:33:46]} {[%emt 00:01:11]} Ba6 {[%clk 00:56:58]} {[%emt 00:07:28]} 18. Qd1
{[%clk 00:33:39]} {[%emt 00:00:36]} h6 {[%clk 00:52:14]} {[%emt 00:05:14]} 19.
h4 {[%clk 00:33:23]} {[%emt 00:00:47]} Bd3 {[%clk 00:44:55]} {[%emt 00:07:50]}
20. Ne5 {[%clk 00:23:18]} {[%emt 00:10:34]} Nxe5 {[%clk 00:42:07]} {[%emt
00:03:18]} 21. Bxe5 {[%clk 00:21:45]} {[%emt 00:02:03]} Ne4 {[%clk 00:31:17]}
{[%emt 00:11:19]} 22. Nxe4 {[%clk 00:19:56]} {[%emt 00:02:20]} Bxe4 {[%clk
00:31:43]} {[%emt 00:00:04]} 23. Qg4 {[%clk 00:15:34]} {[%emt 00:04:50]} g6
{[%clk 00:32:07]} {[%emt 00:00:08]} 24. Bxe4 {[%clk 00:08:34]} {[%emt
00:07:30]} dxe4 {[%clk 00:32:35]} {[%emt 00:00:03]} 25. Qf4 {[%clk 00:08:45]}
{[%emt 00:00:12]} Kh7 {[%clk 00:31:18]} {[%emt 00:01:53]} 26. Bf6 {[%clk
00:08:28]} {[%emt 00:00:45]} Bxf6 {[%clk 00:23:01]} {[%emt 00:08:49]} 27. Qxf6
{[%clk 00:08:57]} {[%emt 00:00:01]} a4 {[%clk 00:23:22]} {[%emt 00:00:10]} 28.
bxa4 {[%clk 00:08:07]} {[%emt 00:01:19]} Qd8 {[%clk 00:11:14]} {[%emt
00:12:38]} 29. Qf4 {[%clk 00:08:08]} {[%emt 00:00:28]} Qa8 {[%clk 00:07:25]}
{[%emt 00:04:21]} 30. Rab1 {[%clk 00:04:55]} {[%emt 00:03:43]} Rxa4 {[%clk
00:07:24]} {[%emt 00:00:31]} 31. Rc7 {[%clk 00:05:19]} {[%emt 00:00:06]} Kg7
{[%clk 00:06:53]} {[%emt 00:01:00]} 32. h5 {[%clk 00:04:23]} {[%emt 00:01:26]}
Qd5 {[%clk 00:05:20]} {[%emt 00:02:03]} 33. hxg6 {[%clk 00:04:06]} {[%emt
00:00:47]} Kxg6 {[%clk 00:05:49]} {[%emt 00:00:02]} 34. Rc5 {[%clk 00:02:58]}
{[%emt 00:01:37]} Qxa2 {[%clk 00:06:09]} {[%emt 00:00:10]} 35. Qg4+ {[%clk
00:03:16]} {[%emt 00:00:12]} Kh7 {[%clk 00:05:20]} {[%emt 00:01:19]} 36. Qxe4+
{[%clk 00:03:33]} {[%emt 00:00:13]} f5 {[%clk 00:05:11]} {[%emt 00:00:40]} 37.
Qb7+ {[%clk 00:02:37]} {[%emt 00:01:25]} Kg6 {[%emt 00:00:17]} 38. Rxb4 {[%clk
00:02:52]} Rxb4 {[%clk 00:05:23]} {[%emt 00:00:45]} 39. Qxb4 {[%clk 00:03:18]}
{[%emt 00:00:04]} Qa1+ {[%clk 00:05:48]} {[%emt 00:00:06]} 40. Kg2 {[%clk
00:18:16]} {[%emt 00:00:31]} Qa8+ {[%emt 00:00:08]} 41. d5 {[%clk 00:10:31]}
{[%emt 00:08:13]} exd5 {[%clk 00:21:17]} {[%emt 00:00:26]} 42. Ra5 {[%clk
00:10:34]} {[%emt 00:00:25]} Qd8 {[%clk 00:21:05]} {[%emt 00:00:43]} 43. Qc5
{[%clk 00:10:50]} {[%emt 00:00:11]} h5 {[%clk 00:19:04]} {[%emt 00:02:35]} 44.
Qxd5 {[%clk 00:09:33]} {[%emt 00:01:47]} Qxd5+ {[%clk 00:18:16]} {[%emt
00:01:18]} 45. Rxd5 {[%clk 00:09:57]} {[%emt 00:00:05]} Ra8 {[%clk 00:17:45]}
{[%emt 00:01:01]} 46. Rd6+ {[%clk 00:09:54]} {[%emt 00:00:33]} Kg7 {[%clk
00:18:12]} {[%emt 00:00:03]} 47. Rd2 {[%clk 00:08:29]} {[%emt 00:01:55]} Kg6
{[%clk 00:17:00]} {[%emt 00:01:42]} 48. Kh3 {[%clk 00:08:43]} {[%emt 00:00:15]}
Ra4 {[%clk 00:16:36]} {[%emt 00:00:55]} 49. Rd6+ {[%clk 00:02:55]} {[%emt
00:06:18]} Kg7 {[%clk 00:17:00]} {[%emt 00:00:06]} 50. Kg2 {[%clk 00:01:35]}
{[%emt 00:01:50]} Ra2 {[%clk 00:17:11]} {[%emt 00:00:19]} 51. Re6 {[%clk
00:01:56]} {[%emt 00:00:09]} Rb2 {[%clk 00:15:24]} {[%emt 00:02:17]} 52. e4
{[%clk 00:01:24]} {[%emt 00:01:02]} fxe4 {[%clk 00:15:51]} {[%emt 00:00:04]} 53.
Rxe4 {[%clk 00:01:52]} {[%emt 00:00:02]} Kg6 {[%clk 00:16:08]} {[%emt
00:00:12]} 54. Rf4 {[%clk 00:02:06]} {[%emt 00:00:16]} Kg5 {[%clk 00:16:22]}
{[%emt 00:00:16]} 55. Rf8 {[%clk 00:02:13]} {[%emt 00:00:23]} Kg6 {[%clk
00:16:07]} {[%emt 00:00:46]} 56. Kh3 {[%clk 00:02:24]} {[%emt 00:00:19]} Kg7
{[%clk 00:16:20]} {[%emt 00:00:16]} 57. Rf4 {[%clk 00:01:47]} {[%emt 00:01:06]}
Kg6 {[%clk 00:16:45]} {[%emt 00:00:05]} 58. Kg2 {[%clk 00:01:41]} {[%emt
00:00:37]} Kg5 {[%clk 00:16:53]} {[%emt 00:00:22]} 59. Rd4 {[%clk 00:01:27]}
{[%emt 00:00:42]} Ra2 {[%clk 00:17:00]} {[%emt 00:00:24]} 60. Rd5+ {[%clk
00:01:31]} {[%emt 00:00:25]} Kg6 {[%clk 00:17:25]} {[%emt 00:00:07]} 61. Rd8
{[%clk 00:01:48]} {[%emt 00:00:13]} Kg5 {[%clk 00:17:34]} {[%emt 00:00:20]} 62.
Rg8+ {[%clk 00:01:55]} {[%emt 00:00:23]} Kh6 {[%clk 00:17:37]} {[%emt
00:00:28]} 63. Rd8 {[%clk 00:02:12]} {[%emt 00:00:10]} Kg5 {[%clk 00:18:03]}
{[%emt 00:00:06]} 64. Kf3 {[%clk 00:02:37]} {[%emt 00:00:05]} Kf5 {[%clk
00:17:40]} {[%emt 00:00:53]} 65. Rd5+ {[%clk 00:01:10]} {[%emt 00:01:57]} Kg6
{[%clk 00:18:07]} {[%emt 00:00:04]} 66. Ke3 {[%clk 00:01:34]} {[%emt 00:00:06]}
Rb2 {[%clk 00:17:53]} {[%emt 00:00:44]} 67. f3 {[%clk 00:01:34]} {[%emt
00:00:30]} Rb4 {[%clk 00:16:28]} {[%emt 00:01:55]} 68. Rd4 {[%clk 00:01:18]}
{[%emt 00:00:44]} Rb6 {[%clk 00:16:36]} {[%emt 00:00:24]} 69. Rd2 {[%clk
00:00:38]} {[%emt 00:01:10]} Rb4 {[%clk 00:16:52]} {[%emt 00:00:15]} 70. Kf2
{[%clk 00:00:45]} {[%emt 00:00:22]} Kf5 {[%clk 00:17:08]} {[%emt 00:00:14]} 71.
Kg2 {[%clk 00:01:10]} {[%emt 00:00:05]} Rb1 {[%clk 00:16:11]} {[%emt 00:01:27]}
72. Rd5+ {[%clk 00:01:11]} {[%emt 00:00:27]} Kg6 {[%clk 00:16:38]} {[%emt
00:00:05]} 73. Rd6+ {[%clk 00:01:30]} {[%emt 00:00:08]} Kg7 {[%clk 00:16:28]}
{[%emt 00:00:42]} 74. Re6 {[%clk 00:00:54]} {[%emt 00:01:06]} Ra1 {[%clk
00:16:42]} {[%emt 00:00:18]} 75. f4 {[%clk 00:00:43]} {[%emt 00:00:39]} Rb1
{[%clk 00:16:56]} {[%emt 00:00:16]} 76. Kf3 {[%clk 00:00:38]} {[%emt 00:00:35]}
Rb3+ {[%clk 00:17:17]} {[%emt 00:00:10]} 77. Re3 {[%clk 00:01:01]} {[%emt
00:00:07]} Rb4 {[%clk 00:17:41]} {[%emt 00:00:06]} 78. Re4 {[%clk 00:00:51]}
{[%emt 00:00:39]} Rb3+ {[%clk 00:18:07]} {[%emt 00:00:05]} 79. Kg2 {[%clk
00:01:17]} {[%emt 00:00:03]} Rb1 {[%clk 00:18:27]} {[%emt 00:00:11]} 80. Ra4
{[%clk 00:01:03]} {[%emt 00:00:43]} Kg6 {[%clk 00:18:43]} {[%emt 00:00:14]} 81.
Ra6+ {[%clk 00:01:21]} {[%emt 00:00:13]} Kg7 {[%clk 00:19:08]} {[%emt
00:00:05]} 82. Re6 {[%clk 00:01:36]} {[%emt 00:00:15]} Ra1 {[%clk 00:19:15]}
{[%emt 00:00:22]} 83. Kf3 {[%clk 00:01:53]} {[%emt 00:00:12]} Rf1+ {[%clk
00:18:29]} {[%emt 00:01:18]} 84. Ke2 {[%clk 00:01:31]} {[%emt 00:00:51]} Ra1
{[%clk 00:18:49]} {[%emt 00:00:11]} 85. Kf2 {[%clk 00:01:57]} {[%emt 00:00:04]}
Rb1 {[%clk 00:19:12]} {[%emt 00:00:07]} 86. Rc6 {[%clk 00:01:37]} {[%emt
00:00:49]} Ra1 {[%clk 00:19:33]} {[%emt 00:00:10]} 87. Kg2 {[%clk 00:01:20]}
{[%emt 00:00:47]} Rb1 {[%clk 00:19:51]} {[%emt 00:00:11]} 88. Rc2 {[%clk
00:00:51]} {[%emt 00:00:59]} Kg6 {[%clk 00:20:01]} {[%emt 00:00:21]} 89. Re2
{[%clk 00:00:52]} {[%emt 00:00:28]} Ra1 {[%clk 00:20:20]} {[%emt 00:00:12]} 90.
Kf3 {[%clk 00:01:09]} {[%emt 00:00:11]} Ra3+ {[%clk 00:20:33]} {[%emt
00:00:19]} 91. Re3 {[%clk 00:01:28]} {[%emt 00:00:11]} Ra4 {[%clk 00:20:59]}
{[%emt 00:00:04]} 92. Re6+ {[%clk 00:01:51]} {[%emt 00:00:07]} Kg7 {[%clk
00:21:19]} {[%emt 00:00:10]} 93. Re1 {[%clk 00:02:10]} {[%emt 00:00:10]} Ra3+
{[%clk 00:21:24]} {[%emt 00:00:27]} 94. Kg2 {[%clk 00:02:29]} {[%emt 00:00:09]}
Kf6 {[%clk 00:15:32]} {[%emt 00:06:23]} 95. Kh3 {[%clk 00:02:11]} {[%emt
00:00:47]} Ra2 {[%clk 00:10:43]} {[%emt 00:05:20]} 96. Re5 {[%clk 00:02:09]}
{[%emt 00:00:29]} Kg6 {[%clk 00:11:09]} {[%emt 00:00:07]} 97. Re6+ {[%clk
00:02:34]} {[%emt 00:00:05]} Kg7 {[%clk 00:10:33]} {[%emt 00:01:06]} 98. Rc6
{[%clk 00:02:07]} {[%emt 00:00:57]} Ra1 {[%clk 00:10:26]} {[%emt 00:00:37]} 99.
Kh4 {[%clk 00:01:52]} {[%emt 00:00:45]} Rh1+ {[%clk 00:10:47]} {[%emt
00:00:09]} 100. Kg5 {[%clk 00:02:20]} {[%emt 00:00:01]} Rg1 {[%clk 00:10:59]}
{[%emt 00:00:19]} 101. Rg6+ {[%clk 00:02:15]} {[%emt 00:00:32]} Kf7 {[%clk
00:11:18]} {[%emt 00:00:13]} 102. Kxh5 {[%clk 00:02:39]} {[%emt 00:00:06]} Rh1+
{[%clk 00:11:41]} {[%emt 00:00:07]} 103. Kg5 {[%clk 00:03:04]} {[%emt
00:00:05]} Rg1 {[%clk 00:12:07]} {[%emt 00:00:05]} 104. Kf5 {[%clk 00:03:25]}
{[%emt 00:00:09]} 1-0

[Event "IV Elllobregat Open Chess Tmnt"]
[Site "Sant Boi de Llobregat, Spain"]
[Date "2023.12.02"]
[Round "3.48"]
[White "Trost, Edvin"]
[Black "Salinas Tomas, Daniel"]
[Result "1/2-1/2"]
[TimeControl "90min/40moves + 15min/end + 30sec from move 1"]
[WhiteFideId "1729519"]
[BlackFideId "24597716"]
[WhiteElo "2440"]
[BlackElo "2281"]

1. d4 {[%clk 01:28:56]} {[%emt 00:02:04]} Nf6 {[%clk 01:30:39]} {[%emt
00:00:21]} 2. c4 {[%clk 01:29:02]} {[%emt 00:00:19]} e6 {[%clk 01:30:57]}
{[%emt 00:00:17]} 3. Nc3 {[%clk 01:29:02]} {[%emt 00:00:30]} Bb4 {[%clk
01:31:20]} {[%emt 00:00:08]} 4. f3 {[%clk 01:29:27]} {[%emt 00:00:04]} c5
{[%clk 01:31:40]} {[%emt 00:00:10]} 5. d5 {[%clk 01:29:52]} {[%emt 00:00:05]}
d6 {[%clk 01:31:45]} {[%emt 00:00:25]} 6. e4 {[%clk 01:30:17]} {[%emt
00:00:06]} b5 {[%clk 01:32:10]} {[%emt 00:00:05]} 7. Nge2 {[%clk 01:30:05]}
{[%emt 00:00:42]} O-O {[%clk 01:31:20]} {[%emt 00:01:19]} 8. Nf4 {[%clk
01:29:47]} {[%emt 00:00:48]} e5 {[%clk 01:12:59]} {[%emt 00:18:51]} 9. Nfe2
{[%clk 01:29:48]} {[%emt 00:00:29]} bxc4 {[%clk 01:12:41]} {[%emt 00:00:48]} 10.
Ng3 {[%clk 01:29:02]} {[%emt 00:01:15]} Bxc3+ {[%clk 01:11:47]} {[%emt
00:01:25]} 11. bxc3 {[%clk 01:29:30]} {[%emt 00:00:01]} Nbd7 {[%clk 01:11:32]}
{[%emt 00:00:46]} 12. Bxc4 {[%clk 01:17:29]} {[%emt 00:12:30]} Qa5 {[%clk
01:11:18]} {[%emt 00:00:45]} 13. Bd2 {[%clk 01:17:50]} {[%emt 00:00:09]} Ba6
{[%clk 01:11:25]} {[%emt 00:00:23]} 14. Qe2 {[%clk 01:18:15]} {[%emt 00:00:05]}
Bxc4 {[%clk 01:10:57]} {[%emt 00:00:58]} 15. Qxc4 {[%clk 01:18:35]} {[%emt
00:00:09]} Nb6 {[%clk 01:10:16]} {[%emt 00:01:11]} 16. Qe2 {[%clk 01:17:44]}
{[%emt 00:01:22]} Qa4 {[%clk 01:08:23]} {[%emt 00:02:23]} 17. O-O {[%clk
01:14:11]} {[%emt 00:04:04]} Nc4 {[%clk 01:05:53]} {[%emt 00:02:59]} 18. Bg5
{[%clk 00:55:10]} {[%emt 00:19:31]} Nd7 {[%clk 01:01:41]} {[%emt 00:04:41]} 19.
Be7 {[%clk 00:55:16]} {[%emt 00:00:24]} Rfb8 {[%clk 00:51:03]} {[%emt
00:11:09]} 20. Nf5 {[%clk 00:47:27]} {[%emt 00:08:20]} Rb2 {[%clk 00:39:44]}
{[%emt 00:11:48]} 21. Qe1 {[%clk 00:47:45]} {[%emt 00:00:12]} Qc2 {[%clk
00:35:54]} {[%emt 00:04:20]} 22. Qg3 {[%clk 00:40:03]} {[%emt 00:08:12]} g6
{[%clk 00:36:17]} {[%emt 00:00:08]} 23. f4 {[%clk 00:38:01]} {[%emt 00:02:32]}
Qxg2+ {[%clk 00:28:07]} {[%emt 00:08:39]} 24. Qxg2 {[%clk 00:38:21]} {[%emt
00:00:09]} Rxg2+ {[%clk 00:28:33]} {[%emt 00:00:06]} 25. Kxg2 {[%clk 00:38:45]}
{[%emt 00:00:04]} gxf5 {[%clk 00:29:01]} {[%emt 00:00:03]} 26. Rg1 {[%clk
00:34:20]} {[%emt 00:04:55]} f6 {[%clk 00:23:08]} {[%emt 00:06:23]} 27. fxe5
{[%clk 00:33:27]} {[%emt 00:01:23]} dxe5 {[%clk 00:22:35]} {[%emt 00:01:02]} 28.
exf5 {[%clk 00:31:24]} {[%emt 00:02:34]} Kf7 {[%clk 00:22:18]} {[%emt
00:00:47]} 29. d6 {[%clk 00:31:50]} {[%emt 00:00:04]} Ne3+ {[%clk 00:22:19]}
{[%emt 00:00:29]} 30. Kf3 {[%clk 00:31:26]} {[%emt 00:00:54]} Nxf5 {[%clk
00:22:46]} {[%emt 00:00:03]} 31. Ke4 {[%clk 00:30:50]} {[%emt 00:01:05]} Ke6
{[%clk 00:23:05]} {[%emt 00:00:11]} 32. Rad1 {[%clk 00:11:57]} {[%emt
00:19:24]} c4 {[%clk 00:22:28]} {[%emt 00:01:07]} 33. Kf3 {[%clk 00:10:52]}
{[%emt 00:01:35]} Re8 {[%clk 00:19:25]} {[%emt 00:03:32]} 34. Rg4 {[%clk
00:06:40]} {[%emt 00:04:43]} Nxe7 {[%clk 00:12:33]} {[%emt 00:07:23]} 35. dxe7
{[%clk 00:07:04]} {[%emt 00:00:04]} Nb6 {[%emt 00:00:59]} 36. a4 {[%clk
00:06:48]} Rxe7 {[%clk 00:11:37]} {[%emt 00:01:45]} 37. Rh4 {[%clk 00:06:39]}
{[%emt 00:00:39]} Rc7 {[%clk 00:10:46]} {[%emt 00:01:20]} 38. a5 {[%clk
00:06:12]} {[%emt 00:00:57]} Nd5 {[%clk 00:11:08]} {[%emt 00:00:07]} 39. Rc1
{[%clk 00:06:42]} Rc5 {[%clk 00:08:16]} {[%emt 00:03:23]} 40. a6 {[%clk
00:21:57]} {[%emt 00:00:14]} Ra5 {[%clk 00:23:03]} {[%emt 00:00:44]} 1/2-1/2

[Event "IV Elllobregat Open Chess Tmnt"]
[Site "Sant Boi de Llobregat, Spain"]
[Date "2023.12.02"]
[Round "3.49"]
[White "Karamsetty, Jeevan"]
[Black "Johansson, Linus"]
[Result "0-1"]
[TimeControl "90min/40moves + 15min/end + 30sec from move 1"]
[WhiteFideId "2025337"]
[BlackFideId "1711113"]
[WhiteElo "2280"]
[BlackElo "2439"]

1. e4 {[%clk 01:30:54]} {[%emt 00:00:04]} e6 {[%clk 01:30:55]} {[%emt
00:00:05]} 2. d3 {[%clk 01:31:12]} {[%emt 00:00:12]} d5 {[%clk 01:31:20]}
{[%emt 00:00:06]} 3. Nd2 {[%clk 01:31:35]} {[%emt 00:00:07]} Nf6 {[%clk
01:31:44]} {[%emt 00:00:05]} 4. Ngf3 {[%clk 01:31:39]} {[%emt 00:00:27]} Nc6
{[%clk 01:32:06]} {[%emt 00:00:08]} 5. c3 {[%clk 01:31:55]} {[%emt 00:00:14]}
Bd6 {[%clk 01:32:27]} {[%emt 00:00:09]} 6. Be2 {[%clk 01:32:07]} {[%emt
00:00:17]} O-O {[%clk 01:32:49]} {[%emt 00:00:08]} 7. O-O {[%clk 01:32:26]}
{[%emt 00:00:11]} Re8 {[%clk 01:33:05]} {[%emt 00:00:14]} 8. Re1 {[%clk
01:30:02]} {[%emt 00:02:54]} e5 {[%clk 01:33:26]} {[%emt 00:00:09]} 9. exd5
{[%clk 01:29:31]} {[%emt 00:01:01]} Nxd5 {[%clk 01:33:44]} {[%emt 00:00:13]} 10.
Nc4 {[%clk 01:29:50]} {[%emt 00:00:10]} h6 {[%clk 01:31:31]} {[%emt 00:02:42]}
11. Qb3 {[%clk 01:21:18]} {[%emt 00:09:03]} Nb6 {[%clk 01:22:33]} {[%emt
00:09:27]} 12. Nxb6 {[%clk 01:13:06]} {[%emt 00:08:43]} axb6 {[%clk 01:22:57]}
{[%emt 00:00:06]} 13. Bf1 {[%clk 01:11:24]} {[%emt 00:02:11]} Be6 {[%clk
01:07:49]} {[%emt 00:15:38]} 14. Qc2 {[%clk 01:09:35]} {[%emt 00:02:19]} Bd5
{[%clk 00:49:40]} {[%emt 00:18:39]} 15. Nd2 {[%clk 01:05:51]} {[%emt 00:04:14]}
Ne7 {[%clk 00:49:11]} {[%emt 00:00:59]} 16. b4 {[%clk 00:59:03]} {[%emt
00:07:18]} Ng6 {[%clk 00:46:32]} {[%emt 00:03:09]} 17. Ne4 {[%clk 00:45:13]}
{[%emt 00:14:20]} Bf8 {[%clk 00:42:29]} {[%emt 00:04:32]} 18. Ng3 {[%clk
00:41:08]} {[%emt 00:04:35]} Qd7 {[%clk 00:35:20]} {[%emt 00:07:40]} 19. a3
{[%clk 00:38:50]} {[%emt 00:02:48]} Qc6 {[%clk 00:26:44]} {[%emt 00:09:07]} 20.
Qb2 {[%clk 00:31:06]} {[%emt 00:08:14]} b5 {[%clk 00:25:10]} {[%emt 00:02:04]}
21. Nf5 {[%clk 00:28:18]} {[%emt 00:03:18]} Be6 {[%clk 00:24:03]} {[%emt
00:01:37]} 22. Ng3 {[%clk 00:23:31]} {[%emt 00:05:16]} Rad8 {[%clk 00:22:38]}
{[%emt 00:01:55]} 23. Bd2 {[%clk 00:15:50]} {[%emt 00:08:11]} Nf4 {[%clk
00:14:14]} {[%emt 00:08:54]} 24. Re3 {[%clk 00:11:49]} {[%emt 00:04:32]} g6
{[%clk 00:12:16]} {[%emt 00:02:29]} 25. Ne4 {[%clk 00:09:02]} {[%emt 00:03:16]}
Bg7 {[%clk 00:11:23]} {[%emt 00:01:22]} 26. Rae1 {[%clk 00:07:11]} {[%emt
00:02:22]} b6 {[%clk 00:08:10]} {[%emt 00:03:43]} 27. f3 {[%clk 00:06:21]}
{[%emt 00:01:20]} Nd5 {[%clk 00:06:44]} {[%emt 00:01:56]} 28. R3e2 {[%clk
00:06:27]} {[%emt 00:00:24]} f5 {[%clk 00:06:28]} {[%emt 00:00:46]} 29. Nf2
{[%clk 00:05:43]} {[%emt 00:01:14]} Bf7 {[%clk 00:06:10]} {[%emt 00:00:48]} 30.
Qc1 {[%clk 00:05:47]} {[%emt 00:00:27]} Kh7 {[%clk 00:05:41]} {[%emt 00:00:59]}
31. g3 {[%clk 00:05:31]} {[%emt 00:00:46]} Qd7 {[%clk 00:05:07]} {[%emt
00:01:04]} 32. Bg2 {[%clk 00:05:30]} {[%emt 00:00:31]} c5 {[%clk 00:04:55]}
{[%emt 00:00:43]} 33. Qc2 {[%clk 00:03:37]} {[%emt 00:02:23]} Rc8 {[%clk
00:04:26]} {[%emt 00:00:59]} 34. bxc5 {[%clk 00:03:41]} {[%emt 00:00:26]} Rxc5
{[%clk 00:03:55]} {[%emt 00:01:01]} 35. Rc1 {[%clk 00:01:52]} {[%emt 00:02:19]}
Rec8 {[%clk 00:03:46]} {[%emt 00:00:39]} 36. Nd1 {[%clk 00:02:00]} {[%emt
00:00:22]} b4 {[%clk 00:01:48]} {[%emt 00:02:28]} 37. c4 {[%clk 00:02:02]}
{[%emt 00:00:28]} bxa3 {[%clk 00:02:12]} {[%emt 00:00:06]} 38. Qa2 {[%clk
00:01:38]} {[%emt 00:00:54]} b5 {[%clk 00:02:02]} {[%emt 00:00:40]} 39. Qxa3
{[%clk 00:01:11]} {[%emt 00:00:57]} bxc4 {[%clk 00:02:22]} {[%emt 00:00:11]} 40.
dxc4 {[%clk 00:15:41]} {[%emt 00:01:00]} Rxc4 {[%clk 00:16:56]} {[%emt
00:00:56]} 41. Rxc4 {[%clk 00:13:59]} {[%emt 00:02:12]} Rxc4 {[%clk 00:17:20]}
{[%emt 00:00:06]} 42. Nb2 {[%clk 00:13:16]} {[%emt 00:01:12]} Rc2 {[%clk
00:14:09]} {[%emt 00:03:40]} 43. Bf1 {[%clk 00:11:08]} {[%emt 00:02:38]} e4
{[%clk 00:08:28]} {[%emt 00:06:11]} 44. Nd1 {[%clk 00:06:37]} {[%emt 00:05:01]}
Nb6 {[%clk 00:07:09]} {[%emt 00:01:49]} 45. Be3 {[%clk 00:04:02]} {[%emt
00:03:05]} Nc4 {[%clk 00:05:50]} {[%emt 00:01:50]} 46. Qa7 {[%clk 00:02:59]}
{[%emt 00:01:33]} Qxd1 {[%clk 00:05:17]} {[%emt 00:01:02]} 47. Rxc2 {[%clk
00:02:58]} {[%emt 00:00:31]} Nxe3 {[%clk 00:05:26]} {[%emt 00:00:22]} 48. Rf2
{[%clk 00:03:04]} {[%emt 00:00:23]} Nxf1 {[%clk 00:05:07]} {[%emt 00:00:49]} 49.
Kg2 {[%clk 00:02:49]} {[%emt 00:00:45]} exf3+ {[%clk 00:04:53]} {[%emt
00:00:44]} 50. Kh3 {[%emt 00:01:12]} Bc4 {[%clk 00:04:41]} 51. Rb2 {[%clk
00:02:35]} {[%emt 00:00:43]} Qd4 {[%clk 00:04:39]} {[%emt 00:00:31]} 52. Qxd4
{[%clk 00:02:16]} {[%emt 00:00:50]} Bxd4 {[%clk 00:05:08]} {[%emt 00:00:01]} 53.
Rb7+ {[%clk 00:01:56]} {[%emt 00:00:50]} Bg7 {[%clk 00:05:22]} {[%emt
00:00:16]} 54. Rc7 {[%clk 00:01:28]} {[%emt 00:00:59]} Ne3 {[%clk 00:05:22]}
{[%emt 00:00:30]} 0-1